[Event "Titled Tuesday Blitz August 1 Late 2023"]
[White "Elsa167"]
[Black "Ibarra Jerez, Jose Carlos"]
[BlackFideId "2226332"]
[WhiteElo "2790"]
[BlackElo "2882"]
[Result "1-0"]
[Round "11"]
[TimeControl "180+1"]
[Date "2023.08.01"]
[WhiteClock "0:00:08"]
[BlackClock "0:00:00"]
[Board "8"]

1. d4 {[%clk 0:03:00]}  Nf6 {[%clk 0:02:57]} 2. c4 {[%clk 0:03:01]}  d6 {[%clk 0:02:56]} 3. Nc3 {[%clk 0:03:01]}  e5 {[%clk 0:02:56]} 4. Nf3 {[%clk 0:03:01]}  e4 {[%clk 0:02:56]} 5. Ng5 {[%clk 0:02:58]}  Qe7 {[%clk 0:02:57]} 6. Qc2 {[%clk 0:02:43]}  Bf5 {[%clk 0:02:57]} 7. f3 {[%clk 0:02:42]}  Nc6 {[%clk 0:02:57]} 8. e3 {[%clk 0:02:32]}  Nxd4 {[%clk 0:02:55]} 9. Qd1 {[%clk 0:01:54]}  Nc6 {[%clk 0:02:51]} 10. g4 {[%clk 0:01:43]}  Bd7 {[%clk 0:02:38]} 11. Ngxe4 {[%clk 0:01:42]}  Nxe4 {[%clk 0:02:38]} 12. Nxe4 {[%clk 0:01:43]}  Bxg4 {[%clk 0:02:35]} 13. Nxd6+ {[%clk 0:01:33]}  cxd6 {[%clk 0:02:35]} 14. fxg4 {[%clk 0:01:34]}  Qh4+ {[%clk 0:02:35]} 15. Kd2 {[%clk 0:01:34]}  Be7 {[%clk 0:02:24]} 16. Bg2 {[%clk 0:01:31]}  O-O {[%clk 0:02:22]} 17. Kc2 {[%clk 0:01:27]}  Ne5 {[%clk 0:02:15]} 18. b3 {[%clk 0:01:13]}  Nxg4 {[%clk 0:02:09]} 19. Bxb7 {[%clk 0:01:08]}  Rab8 {[%clk 0:01:50]} 20. Qf3 {[%clk 0:01:07]}  Bf6 {[%clk 0:01:43]} 21. Rb1 {[%clk 0:01:02]}  Rfe8 {[%clk 0:01:11]} 22. Bd5 {[%clk 0:00:37]}  Re7 {[%clk 0:00:50]} 23. Rg1 {[%clk 0:00:18]}  Ne5 {[%clk 0:00:33]} 24. Qg3 {[%clk 0:00:15]}  Qh5 {[%clk 0:00:33]} 25. Bd2 {[%clk 0:00:13]}  Ng6 {[%clk 0:00:29]} 26. Rbf1 {[%clk 0:00:12]}  Rc8 {[%clk 0:00:25]} 27. Qg4 {[%clk 0:00:10]}  Qxg4 {[%clk 0:00:15]} 28. Rxg4 {[%clk 0:00:11]}  Be5 {[%clk 0:00:15]} 29. h4 {[%clk 0:00:09]}  Rec7 {[%clk 0:00:14]} 30. h5 {[%clk 0:00:08]}  Nf8 {[%clk 0:00:15]} 31. Ba5 {[%clk 0:00:07]}  Rc5 {[%clk 0:00:15]} 32. Bxf7+ {[%clk 0:00:06]}  Kh8 {[%clk 0:00:15]} 33. Bb4 {[%clk 0:00:07]}  R5c7 {[%clk 0:00:14]} 34. Bd5 {[%clk 0:00:07]}  Nd7 {[%clk 0:00:12]} 35. Rf7 {[%clk 0:00:06]}  Nf6 {[%clk 0:00:13]} 36. Rxc7 {[%clk 0:00:06]}  Rxc7 {[%clk 0:00:13]} 37. Be6 {[%clk 0:00:04]}  Nxg4 {[%clk 0:00:12]} 38. Bxg4 {[%clk 0:00:05]}  Kg8 {[%clk 0:00:10]} 39. Kd3 {[%clk 0:00:05]}  Kf7 {[%clk 0:00:10]} 40. Bf3 {[%clk 0:00:03]}  Ke6 {[%clk 0:00:10]} 41. Be4 {[%clk 0:00:02]}  g5 {[%clk 0:00:06]} 42. hxg6 {[%clk 0:00:03]}  h5 {[%clk 0:00:06]} 43. Be1 {[%clk 0:00:03]}  Bf6 {[%clk 0:00:05]} 44. Bd5+ {[%clk 0:00:03]}  Kf5 {[%clk 0:00:05]} 45. e4+ {[%clk 0:00:03]}  Kxg6 {[%clk 0:00:05]} 46. Bg3 {[%clk 0:00:03]}  Be5 {[%clk 0:00:05]} 47. Bxe5 {[%clk 0:00:03]}  dxe5 {[%clk 0:00:05]} 48. Be6 {[%clk 0:00:04]}  Kf6 {[%clk 0:00:05]} 49. Bf5 {[%clk 0:00:04]}  a5 {[%clk 0:00:06]} 50. a3 {[%clk 0:00:04]}  Ke7 {[%clk 0:00:04]} 51. b4 {[%clk 0:00:04]}  Kd6 {[%clk 0:00:04]} 52. c5+ {[%clk 0:00:05]}  Ke7 {[%clk 0:00:02]} 53. Kc4 {[%clk 0:00:05]}  axb4 {[%clk 0:00:03]} 54. axb4 {[%clk 0:00:06]}  Ra7 {[%clk 0:00:04]} 55. Kd5 {[%clk 0:00:04]}  Rb7 {[%clk 0:00:02]} 56. c6 {[%clk 0:00:03]}  Rxb4 {[%clk 0:00:01]} 57. c7 {[%clk 0:00:04]}  Rb5+ {[%clk 0:00:01]} 58. Kc6 {[%clk 0:00:02]}  Rb1 {[%clk 0:00:02]} 59. c8=Q {[%clk 0:00:02]}  Rc1+ {[%clk 0:00:02]} 60. Kd5 {[%clk 0:00:03]}  Rxc8 {[%clk 0:00:03]} 61. Bxc8 {[%clk 0:00:04]}  Kf6 {[%clk 0:00:03]} 62. Bh3 {[%clk 0:00:05]}  Kg5 {[%clk 0:00:03]} 63. Kxe5 {[%clk 0:00:05]}  Kh4 {[%clk 0:00:04]} 64. Bf5 {[%clk 0:00:06]}  Kg3 {[%clk 0:00:05]} 65. Kf6 {[%clk 0:00:06]}  Kf4 {[%clk 0:00:05]} 66. e5 {[%clk 0:00:07]}  h4 {[%clk 0:00:06]} 67. e6 {[%clk 0:00:08]}  h3 {[%clk 0:00:00]} 68. Bxh3 {[%clk 0:00:08]} 1-0


[Site "https://www.chess.com"]

[Event "Titled Tuesday Blitz August 1 Late 2023"]
[White "Andreikin, Dmitry"]
[Black "Mekhitarian, Krikor Sevag"]
[WhiteFideId "4158814"]
[BlackFideId "2107660"]
[WhiteElo "3041"]
[BlackElo "2770"]
[Result "1-0"]
[Round "11"]
[TimeControl "180+1"]
[Date "2023.08.01"]
[WhiteClock "0:01:56"]
[BlackClock "0:00:00"]
[Board "10"]

1. d4 {[%clk 0:03:00]}  Nf6 {[%clk 0:02:59]} 2. c4 {[%clk 0:03:01]}  g6 {[%clk 0:02:59]} 3. d5 {[%clk 0:02:59]}  Bg7 {[%clk 0:02:56]} 4. Nc3 {[%clk 0:03:00]}  O-O {[%clk 0:02:53]} 5. e4 {[%clk 0:02:59]}  c6 {[%clk 0:02:51]} 6. Nf3 {[%clk 0:02:56]}  d6 {[%clk 0:02:50]} 7. h3 {[%clk 0:02:55]}  Nbd7 {[%clk 0:02:48]} 8. Bd3 {[%clk 0:02:54]}  Nc5 {[%clk 0:02:48]} 9. O-O {[%clk 0:02:54]}  a6 {[%clk 0:02:38]} 10. Re1 {[%clk 0:02:54]}  Nxd3 {[%clk 0:02:27]} 11. Qxd3 {[%clk 0:02:54]}  Nd7 {[%clk 0:02:27]} 12. Bf4 {[%clk 0:02:53]}  b5 {[%clk 0:02:10]} 13. dxc6 {[%clk 0:02:52]}  Nc5 {[%clk 0:02:10]} 14. Qe3 {[%clk 0:02:49]}  bxc4 {[%clk 0:02:06]} 15. Nd5 {[%clk 0:02:48]}  Nd3 {[%clk 0:01:56]} 16. c7 {[%clk 0:02:48]}  Qe8 {[%clk 0:01:51]} 17. e5 {[%clk 0:02:49]}  Nxe1 {[%clk 0:01:42]} 18. Rxe1 {[%clk 0:02:50]}  Bb7 {[%clk 0:01:24]} 19. exd6 {[%clk 0:02:42]}  exd6 {[%clk 0:01:13]} 20. Ne7+ {[%clk 0:02:42]}  Kh8 {[%clk 0:01:12]} 21. Bxd6 {[%clk 0:02:25]}  Qd7 {[%clk 0:01:03]} 22. Qc5 {[%clk 0:02:24]}  Bxf3 {[%clk 0:00:47]} 23. gxf3 {[%clk 0:02:25]}  Qxh3 {[%clk 0:00:42]} 24. Qc6 {[%clk 0:02:18]}  h5 {[%clk 0:00:29]} 25. Be5 {[%clk 0:02:12]}  Rae8 {[%clk 0:00:22]} 26. Nxg6+ {[%clk 0:01:56]}  fxg6 {[%clk 0:00:21]} 27. Bxg7+ {[%clk 0:01:56]}  Kxg7 {[%clk 0:00:00]} 28. Rxe8 {[%clk 0:01:56]} 1-0


[Site "https://www.chess.com"]

[Event "Titled Tuesday Blitz August 1 Late 2023"]
[White "Pranav, V"]
[Black "Volovich, Vasily"]
[WhiteFideId "25060783"]
[BlackFideId "34169676"]
[WhiteElo "3000"]
[BlackElo "2748"]
[Result "0-1"]
[Round "11"]
[TimeControl "180+1"]
[Date "2023.08.01"]
[WhiteClock "0:00:05"]
[BlackClock "0:00:07"]
[Board "11"]

1. e4 {[%clk 0:03:00]}  e6 {[%clk 0:03:00]} 2. d3 {[%clk 0:03:00]}  d5 {[%clk 0:03:00]} 3. Nd2 {[%clk 0:03:01]}  Nf6 {[%clk 0:03:00]} 4. Ngf3 {[%clk 0:03:01]}  Nc6 {[%clk 0:03:00]} 5. g3 {[%clk 0:03:02]}  dxe4 {[%clk 0:03:00]} 6. dxe4 {[%clk 0:03:02]}  e5 {[%clk 0:03:00]} 7. Bg2 {[%clk 0:03:02]}  Bc5 {[%clk 0:03:00]} 8. O-O {[%clk 0:03:03]}  O-O {[%clk 0:03:01]} 9. Qe2 {[%clk 0:03:03]}  a5 {[%clk 0:03:00]} 10. Nb3 {[%clk 0:03:01]}  Bd6 {[%clk 0:02:52]} 11. Rd1 {[%clk 0:03:01]}  b6 {[%clk 0:02:47]} 12. Nh4 {[%clk 0:02:54]}  a4 {[%clk 0:02:44]} 13. Nd2 {[%clk 0:02:48]}  Ba6 {[%clk 0:02:44]} 14. c4 {[%clk 0:02:37]}  Nd4 {[%clk 0:02:34]} 15. Qd3 {[%clk 0:02:36]}  Bc5 {[%clk 0:02:23]} 16. Nf1 {[%clk 0:02:31]}  Ng4 {[%clk 0:02:11]} 17. Ne3 {[%clk 0:02:29]}  Nxe3 {[%clk 0:01:59]} 18. Bxe3 {[%clk 0:02:30]}  Qf6 {[%clk 0:01:52]} 19. Re1 {[%clk 0:02:04]}  Rad8 {[%clk 0:01:42]} 20. Qc3 {[%clk 0:02:02]}  g6 {[%clk 0:01:29]} 21. b4 {[%clk 0:02:01]}  Be7 {[%clk 0:01:22]} 22. a3 {[%clk 0:01:40]}  Bb7 {[%clk 0:01:21]} 23. h3 {[%clk 0:01:35]}  Rd7 {[%clk 0:01:04]} 24. Kh2 {[%clk 0:01:31]}  Rfd8 {[%clk 0:01:02]} 25. Rad1 {[%clk 0:00:50]}  c5 {[%clk 0:01:00]} 26. Bxd4 {[%clk 0:00:46]}  exd4 {[%clk 0:00:56]} 27. Qd3 {[%clk 0:00:41]}  Qxf2 {[%clk 0:00:37]} 28. Nf3 {[%clk 0:00:41]}  Bd6 {[%clk 0:00:28]} 29. e5 {[%clk 0:00:40]}  Bxf3 {[%clk 0:00:28]} 30. Qxf3 {[%clk 0:00:39]}  Qxf3 {[%clk 0:00:28]} 31. Bxf3 {[%clk 0:00:40]}  Be7 {[%clk 0:00:26]} 32. b5 {[%clk 0:00:40]}  Bf8 {[%clk 0:00:22]} 33. e6 {[%clk 0:00:37]}  fxe6 {[%clk 0:00:22]} 34. Rxe6 {[%clk 0:00:37]}  Rd6 {[%clk 0:00:22]} 35. Re5 {[%clk 0:00:35]}  Bg7 {[%clk 0:00:20]} 36. Re7 {[%clk 0:00:32]}  d3 {[%clk 0:00:19]} 37. Kg2 {[%clk 0:00:23]}  d2 {[%clk 0:00:17]} 38. Ra7 {[%clk 0:00:23]}  Bc3 {[%clk 0:00:16]} 39. Rc7 {[%clk 0:00:15]}  Bb2 {[%clk 0:00:13]} 40. Ra7 {[%clk 0:00:14]}  Bxa3 {[%clk 0:00:13]} 41. Rxa4 {[%clk 0:00:14]}  Bb4 {[%clk 0:00:14]} 42. Ra7 {[%clk 0:00:15]}  Re8 {[%clk 0:00:10]} 43. Bd5+ {[%clk 0:00:03]}  Kh8 {[%clk 0:00:10]} 44. Bf3 {[%clk 0:00:02]}  Re1 {[%clk 0:00:09]} 45. Ra8+ {[%clk 0:00:03]}  Kg7 {[%clk 0:00:09]} 46. Ra7+ {[%clk 0:00:04]}  Kf6 {[%clk 0:00:07]} 47. Rc7 {[%clk 0:00:03]}  h5 {[%clk 0:00:05]} 48. Rc6 {[%clk 0:00:03]}  Ke5 {[%clk 0:00:03]} 49. Rc8 {[%clk 0:00:03]}  Kd4 {[%clk 0:00:03]} 50. Kf2 {[%clk 0:00:01]}  Kxc4 {[%clk 0:00:04]} 51. Be2+ {[%clk 0:00:01]}  Kc3 {[%clk 0:00:04]} 52. Re8 {[%clk 0:00:02]}  Rd4 {[%clk 0:00:04]} 53. Re3+ {[%clk 0:00:01]}  Kb2 {[%clk 0:00:05]} 54. Bf3 {[%clk 0:00:01]}  c4 {[%clk 0:00:05]} 55. Re6 {[%clk 0:00:01]}  c3 {[%clk 0:00:05]} 56. Rdxe1 {[%clk 0:00:02]}  dxe1=Q+ {[%clk 0:00:05]} 57. Rxe1 {[%clk 0:00:03]}  c2 {[%clk 0:00:05]} 58. Re2 {[%clk 0:00:03]}  Kb1 {[%clk 0:00:05]} 59. Be4 {[%clk 0:00:04]}  Rxe4 {[%clk 0:00:05]} 60. Rxe4 {[%clk 0:00:04]}  c1=Q {[%clk 0:00:04]} 61. Rxb4+ {[%clk 0:00:05]}  Ka2 {[%clk 0:00:05]} 62. Re4 {[%clk 0:00:05]}  Qc5+ {[%clk 0:00:05]} 63. Kf3 {[%clk 0:00:05]}  Qxb5 {[%clk 0:00:05]} 64. g4 {[%clk 0:00:05]}  hxg4+ {[%clk 0:00:05]} 65. hxg4 {[%clk 0:00:06]}  Qd5 {[%clk 0:00:06]} 66. Kf4 {[%clk 0:00:06]}  b5 {[%clk 0:00:06]} 67. Re5 {[%clk 0:00:07]}  Qd6 {[%clk 0:00:06]} 68. Ke4 {[%clk 0:00:07]}  b4 {[%clk 0:00:07]} 69. Rd5 {[%clk 0:00:05]}  Qc6 {[%clk 0:00:07]} 0-1


[Site "https://www.chess.com"]

[Event "Titled Tuesday Blitz August 1 Late 2023"]
[White "Kamsky, Gata"]
[Black "Papasimakopoulos, Alexandros"]
[WhiteFideId "2000024"]
[BlackFideId "4244125"]
[WhiteElo "2978"]
[BlackElo "2697"]
[Result "1/2-1/2"]
[Round "11"]
[TimeControl "180+1"]
[Date "2023.08.01"]
[WhiteClock "0:00:08"]
[BlackClock "0:00:20"]
[Board "12"]

1. e4 {[%clk 0:03:00]}  e6 {[%clk 0:03:00]} 2. d4 {[%clk 0:02:48]}  d5 {[%clk 0:03:00]} 3. Nc3 {[%clk 0:02:46]}  Bb4 {[%clk 0:02:59]} 4. e5 {[%clk 0:02:46]}  c5 {[%clk 0:03:00]} 5. a3 {[%clk 0:02:46]}  Bxc3+ {[%clk 0:03:00]} 6. bxc3 {[%clk 0:02:46]}  Nc6 {[%clk 0:03:01]} 7. Qg4 {[%clk 0:02:42]}  g6 {[%clk 0:03:01]} 8. Nf3 {[%clk 0:02:24]}  Bd7 {[%clk 0:03:01]} 9. h4 {[%clk 0:02:19]}  h6 {[%clk 0:03:00]} 10. Bd3 {[%clk 0:02:18]}  c4 {[%clk 0:02:59]} 11. Be2 {[%clk 0:02:04]}  Qa5 {[%clk 0:02:58]} 12. Bd2 {[%clk 0:02:04]}  O-O-O {[%clk 0:02:58]} 13. a4 {[%clk 0:02:04]}  Nge7 {[%clk 0:02:53]} 14. O-O {[%clk 0:02:02]}  Nf5 {[%clk 0:02:51]} 15. Rfe1 {[%clk 0:02:01]}  Rdg8 {[%clk 0:02:45]} 16. Nh2 {[%clk 0:01:57]}  g5 {[%clk 0:02:44]} 17. h5 {[%clk 0:01:56]}  Ncxd4 {[%clk 0:02:40]} 18. Bd1 {[%clk 0:01:46]}  Rf8 {[%clk 0:02:31]} 19. Qh3 {[%clk 0:01:44]}  Nc6 {[%clk 0:02:08]} 20. Ng4 {[%clk 0:01:43]}  Rd8 {[%clk 0:01:59]} 21. Nf6 {[%clk 0:01:39]}  Kb8 {[%clk 0:01:56]} 22. Bg4 {[%clk 0:01:27]}  Ng7 {[%clk 0:01:55]} 23. f4 {[%clk 0:01:24]}  gxf4 {[%clk 0:01:54]} 24. Bxf4 {[%clk 0:01:25]}  Ne8 {[%clk 0:01:55]} 25. Qe3 {[%clk 0:01:14]}  Nxf6 {[%clk 0:01:51]} 26. exf6+ {[%clk 0:01:14]}  e5 {[%clk 0:01:49]} 27. Bxe5+ {[%clk 0:01:14]}  Nxe5 {[%clk 0:01:49]} 28. Qxe5+ {[%clk 0:01:14]}  Qc7 {[%clk 0:01:50]} 29. Qxc7+ {[%clk 0:01:05]}  Kxc7 {[%clk 0:01:51]} 30. Re7 {[%clk 0:01:05]}  Kd6 {[%clk 0:01:51]} 31. Bxd7 {[%clk 0:01:03]}  Rxd7 {[%clk 0:01:52]} 32. Rae1 {[%clk 0:01:03]}  Rhd8 {[%clk 0:01:48]} 33. Kf2 {[%clk 0:01:02]}  a6 {[%clk 0:01:42]} 34. g4 {[%clk 0:00:59]}  b5 {[%clk 0:01:37]} 35. axb5 {[%clk 0:00:59]}  axb5 {[%clk 0:01:38]} 36. Kf3 {[%clk 0:00:58]}  d4 {[%clk 0:01:27]} 37. cxd4 {[%clk 0:00:57]}  b4 {[%clk 0:01:27]} 38. Kf4 {[%clk 0:00:48]}  b3 {[%clk 0:01:24]} 39. cxb3 {[%clk 0:00:48]}  cxb3 {[%clk 0:01:25]} 40. g5 {[%clk 0:00:45]}  hxg5+ {[%clk 0:01:07]} 41. Kxg5 {[%clk 0:00:37]}  Rg8+ {[%clk 0:01:02]} 42. Kf5 {[%clk 0:00:31]}  b2 {[%clk 0:00:58]} 43. Rxd7+ {[%clk 0:00:24]}  Kxd7 {[%clk 0:00:58]} 44. Rb1 {[%clk 0:00:23]}  Rg2 {[%clk 0:00:57]} 45. h6 {[%clk 0:00:24]}  Rh2 {[%clk 0:00:57]} 46. h7 {[%clk 0:00:23]}  Rxh7 {[%clk 0:00:48]} 47. Rxb2 {[%clk 0:00:23]}  Rh5+ {[%clk 0:00:47]} 48. Ke4 {[%clk 0:00:23]}  Rh4+ {[%clk 0:00:46]} 49. Kd5 {[%clk 0:00:23]}  Rh5+ {[%clk 0:00:46]} 50. Kc4 {[%clk 0:00:24]}  Rf5 {[%clk 0:00:44]} 51. Rb6 {[%clk 0:00:24]}  Rf1 {[%clk 0:00:41]} 52. Ra6 {[%clk 0:00:22]}  Rf2 {[%clk 0:00:41]} 53. Kc5 {[%clk 0:00:22]}  Rf1 {[%clk 0:00:39]} 54. Ra7+ {[%clk 0:00:19]}  Ke6 {[%clk 0:00:39]} 55. d5+ {[%clk 0:00:20]}  Kxf6 {[%clk 0:00:40]} 56. Kd6 {[%clk 0:00:20]}  Rd1 {[%clk 0:00:38]} 57. Ra2 {[%clk 0:00:19]}  Rf1 {[%clk 0:00:34]} 58. Kd7 {[%clk 0:00:19]}  Ke5 {[%clk 0:00:34]} 59. d6 {[%clk 0:00:19]}  f5 {[%clk 0:00:34]} 60. Re2+ {[%clk 0:00:19]}  Kf6 {[%clk 0:00:31]} 61. Rd2 {[%clk 0:00:19]}  f4 {[%clk 0:00:28]} 62. Kc6 {[%clk 0:00:18]}  Rc1+ {[%clk 0:00:25]} 63. Kb7 {[%clk 0:00:18]}  Rb1+ {[%clk 0:00:24]} 64. Kc7 {[%clk 0:00:17]}  Rc1+ {[%clk 0:00:24]} 65. Kb6 {[%clk 0:00:16]}  Rb1+ {[%clk 0:00:25]} 66. Kc5 {[%clk 0:00:16]}  Rb8 {[%clk 0:00:23]} 67. d7 {[%clk 0:00:15]}  Rd8 {[%clk 0:00:24]} 68. Kd6 {[%clk 0:00:15]}  Kf5 {[%clk 0:00:23]} 69. Ke7 {[%clk 0:00:14]}  Rxd7+ {[%clk 0:00:20]} 70. Rxd7 {[%clk 0:00:09]}  f3 {[%clk 0:00:20]} 71. Kd6 {[%clk 0:00:09]}  Ke4 {[%clk 0:00:20]} 72. Rf7 {[%clk 0:00:09]}  Ke3 {[%clk 0:00:19]} 73. Ke5 {[%clk 0:00:09]}  f2 {[%clk 0:00:20]} 74. Rxf2 {[%clk 0:00:08]}  Kxf2 {[%clk 0:00:20]} 1/2-1/2


[Site "https://www.chess.com"]

[Event "Titled Tuesday Blitz August 1 Late 2023"]
[White "Xiong, Jeffery"]
[Black "Volkov, Maksim"]
[WhiteFideId "2047640"]
[BlackFideId "54123070"]
[WhiteElo "2965"]
[BlackElo "2718"]
[Result "1-0"]
[Round "11"]
[TimeControl "180+1"]
[Date "2023.08.01"]
[WhiteClock "0:00:14"]
[BlackClock "0:00:28"]
[Board "13"]

1. d4 {[%clk 0:03:00]}  d5 {[%clk 0:02:59]} 2. c4 {[%clk 0:03:01]}  e6 {[%clk 0:03:00]} 3. Nc3 {[%clk 0:03:00]}  c6 {[%clk 0:03:00]} 4. e3 {[%clk 0:02:59]}  Nf6 {[%clk 0:03:00]} 5. Nf3 {[%clk 0:03:00]}  Nbd7 {[%clk 0:03:00]} 6. Qc2 {[%clk 0:03:00]}  Bd6 {[%clk 0:03:01]} 7. b3 {[%clk 0:03:01]}  O-O {[%clk 0:03:00]} 8. Be2 {[%clk 0:03:02]}  b6 {[%clk 0:03:01]} 9. O-O {[%clk 0:03:02]}  Bb7 {[%clk 0:03:01]} 10. Bb2 {[%clk 0:03:03]}  Qe7 {[%clk 0:03:02]} 11. Rad1 {[%clk 0:03:04]}  Rad8 {[%clk 0:03:02]} 12. Rfe1 {[%clk 0:03:04]}  Rfe8 {[%clk 0:03:03]} 13. g3 {[%clk 0:03:03]}  c5 {[%clk 0:03:02]} 14. cxd5 {[%clk 0:02:58]}  exd5 {[%clk 0:03:03]} 15. Bf1 {[%clk 0:02:57]}  a6 {[%clk 0:03:03]} 16. Nh4 {[%clk 0:02:47]}  g6 {[%clk 0:03:00]} 17. Nf3 {[%clk 0:02:47]}  b5 {[%clk 0:02:59]} 18. dxc5 {[%clk 0:02:47]}  Nxc5 {[%clk 0:02:59]} 19. Ne2 {[%clk 0:02:46]}  Rc8 {[%clk 0:02:57]} 20. Qb1 {[%clk 0:02:45]}  Nce4 {[%clk 0:02:56]} 21. Bh3 {[%clk 0:02:35]}  Rc7 {[%clk 0:02:51]} 22. Nf4 {[%clk 0:02:35]}  Bb4 {[%clk 0:02:46]} 23. Re2 {[%clk 0:02:32]}  Nc3 {[%clk 0:02:45]} 24. Bxc3 {[%clk 0:02:32]}  Bxc3 {[%clk 0:02:46]} 25. Bg2 {[%clk 0:02:27]}  Rd8 {[%clk 0:02:44]} 26. Nd4 {[%clk 0:02:26]}  Ne4 {[%clk 0:02:40]} 27. Rc2 {[%clk 0:02:25]}  Ba5 {[%clk 0:02:36]} 28. Nde2 {[%clk 0:02:24]}  Qe5 {[%clk 0:02:05]} 29. Rxc7 {[%clk 0:01:50]}  Bxc7 {[%clk 0:02:04]} 30. Rc1 {[%clk 0:01:47]}  Bb6 {[%clk 0:02:00]} 31. Qd3 {[%clk 0:01:46]}  Qb2 {[%clk 0:01:55]} 32. Rc2 {[%clk 0:01:36]}  Qa1+ {[%clk 0:01:54]} 33. Nc1 {[%clk 0:01:19]}  d4 {[%clk 0:01:15]} 34. Bxe4 {[%clk 0:01:12]}  dxe3 {[%clk 0:01:15]} 35. Qxd8+ {[%clk 0:00:49]}  Bxd8 {[%clk 0:01:15]} 36. Bxb7 {[%clk 0:00:50]}  Bb6 {[%clk 0:01:07]} 37. Nd3 {[%clk 0:00:20]}  exf2+ {[%clk 0:01:01]} 38. Kg2 {[%clk 0:00:16]}  a5 {[%clk 0:00:58]} 39. Ba6 {[%clk 0:00:12]}  b4 {[%clk 0:00:57]} 40. Nxf2 {[%clk 0:00:09]}  Qd4 {[%clk 0:00:56]} 41. Bc4 {[%clk 0:00:08]}  Kg7 {[%clk 0:00:54]} 42. Ncd3 {[%clk 0:00:09]}  Qe3 {[%clk 0:00:52]} 43. Kf1 {[%clk 0:00:08]}  h5 {[%clk 0:00:50]} 44. Re2 {[%clk 0:00:08]}  Qd4 {[%clk 0:00:51]} 45. Kg2 {[%clk 0:00:08]}  h4 {[%clk 0:00:47]} 46. Re7 {[%clk 0:00:08]}  hxg3 {[%clk 0:00:45]} 47. hxg3 {[%clk 0:00:09]}  Qa1 {[%clk 0:00:44]} 48. Rxf7+ {[%clk 0:00:10]}  Kh6 {[%clk 0:00:44]} 49. Rf6 {[%clk 0:00:06]}  Qxf6 {[%clk 0:00:42]} 50. Ng4+ {[%clk 0:00:07]}  Kg5 {[%clk 0:00:42]} 51. Nxf6 {[%clk 0:00:08]}  Kxf6 {[%clk 0:00:42]} 52. Kf3 {[%clk 0:00:08]}  Bd4 {[%clk 0:00:40]} 53. Nf4 {[%clk 0:00:09]}  g5 {[%clk 0:00:39]} 54. Ne2 {[%clk 0:00:09]}  Bb2 {[%clk 0:00:36]} 55. Ke4 {[%clk 0:00:10]}  Ba1 {[%clk 0:00:35]} 56. g4 {[%clk 0:00:11]}  Be5 {[%clk 0:00:34]} 57. Nd4 {[%clk 0:00:11]}  Bc7 {[%clk 0:00:33]} 58. Nc6 {[%clk 0:00:12]}  Bd6 {[%clk 0:00:33]} 59. Kd5 {[%clk 0:00:13]}  Bc7 {[%clk 0:00:33]} 60. Bd3 {[%clk 0:00:13]}  Bb6 {[%clk 0:00:33]} 61. Bf5 {[%clk 0:00:13]}  Bc7 {[%clk 0:00:28]} 62. Kc5 {[%clk 0:00:14]} 1-0


[Site "https://www.chess.com"]

[Event "Titled Tuesday Blitz August 1 Late 2023"]
[White "Harshavardhan G B"]
[Black "Korchmar, Vasiliy"]
[WhiteFideId "25059009"]
[BlackFideId "24131750"]
[WhiteElo "2877"]
[BlackElo "2688"]
[Result "0-1"]
[Round "11"]
[TimeControl "180+1"]
[Date "2023.08.01"]
[WhiteClock "0:00:00"]
[BlackClock "0:00:10"]
[Board "14"]

1. d4 {[%clk 0:03:00]}  d5 {[%clk 0:02:57]} 2. c4 {[%clk 0:02:58]}  c6 {[%clk 0:02:57]} 3. Nf3 {[%clk 0:02:52]}  Nf6 {[%clk 0:02:57]} 4. Nc3 {[%clk 0:02:52]}  e6 {[%clk 0:02:56]} 5. Bg5 {[%clk 0:02:51]}  Nbd7 {[%clk 0:02:56]} 6. e3 {[%clk 0:02:50]}  Be7 {[%clk 0:02:56]} 7. cxd5 {[%clk 0:02:47]}  exd5 {[%clk 0:02:56]} 8. Bd3 {[%clk 0:02:47]}  Nf8 {[%clk 0:02:52]} 9. Ne5 {[%clk 0:02:46]}  Ng6 {[%clk 0:02:37]} 10. f4 {[%clk 0:02:39]}  Nxe5 {[%clk 0:02:31]} 11. fxe5 {[%clk 0:02:35]}  Ng4 {[%clk 0:02:31]} 12. Bxe7 {[%clk 0:02:35]}  Qxe7 {[%clk 0:02:32]} 13. Qf3 {[%clk 0:02:35]}  Qg5 {[%clk 0:02:10]} 14. Nd1 {[%clk 0:02:27]}  f6 {[%clk 0:01:47]} 15. exf6 {[%clk 0:02:15]}  Nxf6 {[%clk 0:01:29]} 16. O-O {[%clk 0:02:06]}  O-O {[%clk 0:01:26]} 17. Qf4 {[%clk 0:02:03]}  Qh5 {[%clk 0:01:22]} 18. Qg3 {[%clk 0:01:58]}  Bd7 {[%clk 0:01:18]} 19. Nc3 {[%clk 0:01:51]}  Rae8 {[%clk 0:01:17]} 20. Rf4 {[%clk 0:01:49]}  Ng4 {[%clk 0:01:02]} 21. Rxf8+ {[%clk 0:01:47]}  Rxf8 {[%clk 0:01:03]} 22. h3 {[%clk 0:01:42]}  Nf6 {[%clk 0:01:03]} 23. Rf1 {[%clk 0:01:40]}  Qe8 {[%clk 0:00:48]} 24. Rf3 {[%clk 0:01:27]}  Qe7 {[%clk 0:00:47]} 25. Qc7 {[%clk 0:01:23]}  Qb4 {[%clk 0:00:36]} 26. Rf2 {[%clk 0:01:19]}  Qb6 {[%clk 0:00:27]} 27. Qxb6 {[%clk 0:01:16]}  axb6 {[%clk 0:00:28]} 28. Na4 {[%clk 0:01:14]}  b5 {[%clk 0:00:25]} 29. Nc5 {[%clk 0:01:04]}  Bc8 {[%clk 0:00:26]} 30. Bf5 {[%clk 0:00:58]}  Bxf5 {[%clk 0:00:18]} 31. Rxf5 {[%clk 0:00:58]}  Rf7 {[%clk 0:00:19]} 32. b4 {[%clk 0:00:52]}  Re7 {[%clk 0:00:19]} 33. Rf3 {[%clk 0:00:51]}  Ne8 {[%clk 0:00:17]} 34. Kf2 {[%clk 0:00:49]}  Nd6 {[%clk 0:00:17]} 35. Nd3 {[%clk 0:00:44]}  Nc4 {[%clk 0:00:17]} 36. Nc1 {[%clk 0:00:24]}  Nd2 {[%clk 0:00:14]} 37. Rf4 {[%clk 0:00:22]}  Nc4 {[%clk 0:00:14]} 38. Rf3 {[%clk 0:00:21]}  g5 {[%clk 0:00:11]} 39. Ke2 {[%clk 0:00:21]}  Kg7 {[%clk 0:00:11]} 40. Kd3 {[%clk 0:00:16]}  Kg6 {[%clk 0:00:11]} 41. Nb3 {[%clk 0:00:15]}  Re8 {[%clk 0:00:09]} 42. Nc1 {[%clk 0:00:14]}  Ra8 {[%clk 0:00:09]} 43. Kc2 {[%clk 0:00:09]}  h5 {[%clk 0:00:08]} 44. g4 {[%clk 0:00:05]}  hxg4 {[%clk 0:00:09]} 45. hxg4 {[%clk 0:00:00]}  Rh8 {[%clk 0:00:10]} 0-1


[Site "https://www.chess.com"]

[Event "Titled Tuesday Blitz August 1 Late 2023"]
[White "Rastbod, Ali"]
[Black "Rasulov, Vugar"]
[WhiteFideId "12567477"]
[BlackFideId "13402390"]
[WhiteElo "2677"]
[BlackElo "2832"]
[Result "1-0"]
[Round "11"]
[TimeControl "180+1"]
[Date "2023.08.01"]
[WhiteClock "0:01:29"]
[BlackClock "0:01:37"]
[Board "16"]

1. d4 {[%clk 0:02:59]}  g6 {[%clk 0:02:56]} 2. e4 {[%clk 0:02:58]}  b6 {[%clk 0:02:57]} 3. Nf3 {[%clk 0:02:57]}  Bg7 {[%clk 0:02:57]} 4. Bc4 {[%clk 0:02:55]}  Bb7 {[%clk 0:02:57]} 5. Qe2 {[%clk 0:02:54]}  e6 {[%clk 0:02:57]} 6. h4 {[%clk 0:02:53]}  d5 {[%clk 0:02:55]} 7. exd5 {[%clk 0:02:51]}  Bxd5 {[%clk 0:02:56]} 8. Bxd5 {[%clk 0:02:51]}  Qxd5 {[%clk 0:02:57]} 9. c4 {[%clk 0:02:52]}  Qd6 {[%clk 0:02:55]} 10. h5 {[%clk 0:02:48]}  Ne7 {[%clk 0:02:55]} 11. h6 {[%clk 0:02:45]}  Bxd4 {[%clk 0:02:51]} 12. Nxd4 {[%clk 0:02:43]}  Qxd4 {[%clk 0:02:52]} 13. Nc3 {[%clk 0:02:41]}  Nbc6 {[%clk 0:02:45]} 14. Be3 {[%clk 0:02:39]}  Qe5 {[%clk 0:02:44]} 15. O-O-O {[%clk 0:02:36]}  Nf5 {[%clk 0:02:45]} 16. Qf3 {[%clk 0:02:35]}  Nfe7 {[%clk 0:02:36]} 17. Bf4 {[%clk 0:02:25]}  Qc5 {[%clk 0:02:28]} 18. Ne4 {[%clk 0:02:19]}  Qxc4+ {[%clk 0:02:25]} 19. Kb1 {[%clk 0:02:20]}  Nd5 {[%clk 0:02:15]} 20. Rxd5 {[%clk 0:02:00]}  exd5 {[%clk 0:02:16]} 21. Nf6+ {[%clk 0:02:01]}  Kd8 {[%clk 0:02:12]} 22. Rc1 {[%clk 0:01:49]}  Nd4 {[%clk 0:01:52]} 23. Bxc7+ {[%clk 0:01:37]}  Kc8 {[%clk 0:01:37]} 24. Qg4+ {[%clk 0:01:29]} 1-0


[Site "https://www.chess.com"]